bitfinex/quotes_SOLUSD_20251231
["timestamp","ask_amount","ask_price","bid_price","bid_amount"]
[1767189961804,5.59911219,126.64,126.61,0.72]
[1767189963681,0.72,126.64,126.61,0.72]
[1767189963875,5.59911219,126.64,126.61,0.72]
[1767189965291,0.72,126.64,126.61,5.59911219]
[1767189967497,0.72,126.64,126.62,0.72]
[1767189967795,20.11911219,126.65,126.62,0.72]
[1767189968180,0.1,126.65,126.63,0.72]
[1767189968382,0.1,126.65,126.63,5.59911219]
[1767189968775,0.1,126.65,126.64,4.87911219]
[1767189969296,0.82,126.68,126.65,0.72]
[1767189969595,0.82,126.68,126.66,4.87911219]
[1767189969803,15.24,126.68,126.65,5.59911219]
[1767189970005,0.72,126.66,126.61,0.72]
[1767189970185,0.72,126.66,126.62,0.72]
[1767189970506,0.72,126.66,126.63,5.59911219]
[1767189970692,15.14,126.67,126.64,5.59911219]
[1767189970893,15.14,126.67,126.65,4.87911219]
[1767189971281,0.72,126.67,126.64,5.59911219]
[1767189972391,0.72,126.67,126.65,4.87911219]
[1767189973399,15.24,126.68,126.65,5.59911219]
[1767189973781,15.24,126.68,126.65,0.72]
[1767189973977,15.24,126.68,126.65,5.59911219]
[1767189975686,15.24,126.68,126.65,0.72]
[1767189975898,15.24,126.68,126.65,5.59911219]
[1767189976488,14.52,126.68,126.65,4.87911219]
[1767189976804,14.52,126.68,126.66,5.59911219]
[1767189976805,0.82,126.68,126.66,5.59911219]
[1767189977482,0.82,126.68,126.66,0.72]
[1767189980401,0.82,126.68,126.65,5.55911219]
[1767189982089,0.67,126.67,126.64,5.55911219]
[1767189982284,5.54911219,126.67,126.64,0.68]
[1767189982492,0.67,126.66,126.64,0.68]
[1767189983094,0.67,126.66,126.63,5.55911219]
[1767189983294,0.67,126.66,126.63,4.87911219]
[1767189983501,0.67,126.66,126.64,0.68]
[1767189983702,0.67,126.67,126.64,0.68]
[1767189983897,0.67,126.67,126.64,5.55911219]
[1767189984104,0.67,126.66,126.63,5.55911219]
[1767189985599,5.54911219,126.66,126.63,0.68]
[1767189985801,0.67,126.65,126.63,0.68]
[1767189986009,0.67,126.65,126.62,5.55911219]
[1767189987331,0.67,126.65,126.62,0.68]
[1767189987521,0.67,126.65,126.62,5.55911219]
[1767189987928,0.67,126.65,126.62,4.87911219]
[1767189988525,0.67,126.65,126.62,5.55911219]
[1767189988735,0.67,126.65,126.62,0.68]
[1767189989029,0.67,126.65,126.62,5.55911219]
[1767189989208,5.54911219,126.65,126.62,5.55911219]
[1767189989409,19.96911219,126.65,126.62,0.68]
[1767189990328,4.87911219,126.64,126.62,0.68]
[1767189990532,0.67,126.64,126.62,0.68]
[1767189990901,0.67,126.64,126.6,62.8]
[1767189991221,5.54911219,126.64,126.61,0.68]
[1767189991728,5.54911219,126.62,126.58,0.68]
[1767189991906,19.96911219,126.62,126.59,0.68]
[1767189992308,15.09,126.62,126.59,0.68]
[1767189992514,19.96911219,126.62,126.59,0.68]
[1767189995131,15.09,126.62,126.59,0.68]
[1767189995307,19.96911219,126.62,126.59,5.55911219]
[1767189995511,5.54911219,126.63,126.6,0.68]
[1767189995712,5.54911219,126.64,126.61,5.55911219]
[1767189995926,14.42,126.63,126.61,5.55911219]
[1767189996130,0.67,126.64,126.61,5.55911219]
[1767189996445,7.89466536,126.67,126.62,5.55911219]
[1767189996446,15.09,126.65,126.62,5.55911219]
[1767189996614,14.42,126.65,126.62,5.55911219]
[1767189996939,0.67,126.64,126.61,5.55911219]
[1767189997827,0.67,126.64,126.61,0.68]
[1767189998123,0.67,126.64,126.61,5.55911219]
[1767189999154,0.67,126.64,126.61,0.68]
[1767189999436,0.67,126.64,126.62,0.68]
[1767190000637,15.09,126.65,126.62,0.68]
[1767190000828,19.96911219,126.65,126.62,0.68]
[1767190001738,0.67,126.64,126.61,5.55911219]
[1767190001944,5.54911219,126.63,126.6,0.68]
[1767190002320,19.96911219,126.63,126.6,0.68]
[1767190002541,18.20916795,126.63,126.6,0.68]
[1767190002919,15.09,126.63,126.6,0.68]
[1767190003141,18.20916795,126.63,126.6,0.68]
[1767190003645,3.11916795,126.62,126.6,0.68]
[1767190003826,18.20916795,126.63,126.6,0.68]
[1767190004147,3.78916795,126.63,126.6,0.68]
[1767190004317,18.20916795,126.63,126.6,0.68]
[1767190005847,0.67,126.62,126.58,0.68]
[1767190006045,0.67,126.61,126.58,3.79916795]
[1767190006344,0.67,126.61,126.58,0.68]
[1767190006733,3.78916795,126.61,126.58,0.68]
[1767190008240,0.67,126.59,126.56,66.59916795]
[1767190008446,0.67,126.59,126.56,65.91916795]
[1767190008643,3.11916795,126.6,126.56,65.91916795]
[1767190008644,3.78916795,126.6,126.57,0.68]
[1767190011851,3.11916795,126.61,126.57,3.11916795]
[1767190012038,3.78916795,126.61,126.58,0.68]
[1767190013764,0.67,126.6,126.58,0.68]
[1767190014345,0.67,126.6,126.57,3.79916795]
[1767190014552,3.78916795,126.6,126.57,0.68]
[1767190015038,3.11916795,126.6,126.56,65.91916795]
[1767190015246,0.67,126.58,126.56,62.8]
[1767190015628,0.67,126.58,126.55,0.68]
[1767190016847,0.67,126.58,126.55,3.79916795]
[1767190019853,0.61473657,126.58,126.55,3.79916795]
[1767190020757,3.11916795,126.58,126.54,0.68]
[1767190020957,3.11916795,126.55,126.53,62.8]
[1767190021166,3.11916795,126.56,126.52,0.68]
[1767190021475,14.44,126.57,126.52,0.68]
[1767190021840,0.67,126.55,126.52,0.68]
[1767190023041,3.78916795,126.55,126.52,0.68]
[1767190023263,0.67,126.55,126.52,0.68]
[1767190023560,3.78916795,126.55,126.52,0.68]
[1767190025459,3.78916795,126.54,126.51,0.68]
[1767190026953,3.78916795,126.53,126.49,0.68]
[1767190027158,7.90147842,126.56,126.48,0.88]
[1767190027159,3.78916795,126.51,126.48,0.88]
[1767190027369,0.67,126.51,126.48,0.88]
[1767190027540,0.67,126.51,126.48,3.99916795]
[1767190027961,0.67,126.51,126.48,0.88]
[1767190028156,18.22916795,126.53,126.49,0.68]
[1767190028360,18.22916795,126.53,126.49,3.79916795]
[1767190028566,3.78916795,126.53,126.49,3.79916795]
[1767190029172,3.11916795,126.53,126.49,0.68]
[1767190029359,3.78916795,126.53,126.49,0.68]
[1767190030269,0.67,126.52,126.49,3.79916795]
[1767190032476,14.44,126.54,126.5,3.79916795]
[1767190032477,3.78916795,126.54,126.5,3.79916795]
[1767190032774,0.67,126.53,126.5,3.79916795]
[1767190033786,3.78916795,126.53,126.5,0.68]
[1767190038273,0.67,126.52,126.48,0.88]
[1767190038475,0.67,126.52,126.49,3.79916795]
[1767190038977,3.81916795,126.51,126.48,0.88]
[1767190040591,0.7,126.51,126.48,0.88]
[1767190040759,3.81916795,126.51,126.48,0.88]
[1767190042084,0.66,126.5,126.48,0.2]
[1767190042261,3.77916795,126.5,126.48,0.2]
[1767190042465,3.11916795,126.49,126.48,0.2]
[1767190042670,3.77916795,126.49,126.48,0.2]
[1767190044196,0.66,126.49,126.48,0.2]
[1767190044893,3.77916795,126.49,126.47,0.2]
[1767190045093,22.34452076,126.51,126.46,0.2]
[1767190045094,3.77916795,126.48,126.46,0.2]
[1767190045290,0.66,126.48,126.46,0.2]
[1767190045496,3.77916795,126.48,126.46,0.2]
[1767190045870,3.77916795,126.47,126.46,0.2]
[1767190046367,0.66,126.47,126.46,0.2]
[1767190046570,0.66,126.52,126.46,0.2]
[1767190046878,3.77916795,126.5,126.46,3.96916795]
[1767190047273,18.21916795,126.52,126.48,3.76916795]
[1767190047993,0.66,126.51,126.48,3.76916795]
[1767190049095,3.77916795,126.51,126.48,0.65]
[1767190049595,0.66,126.51,126.48,0.65]
[1767190049780,3.77916795,126.51,126.48,0.65]
[1767190050687,0.66,126.51,126.48,0.65]
[1767190050900,3.77916795,126.51,126.48,0.65]
[1767190051200,0.66,126.51,126.48,3.76916795]
[1767190051401,0.66,126.56,126.51,0.65]
[1767190051699,0.66,126.57,126.53,3.11916795]
[1767190051875,0.66,126.57,126.54,0.65]
[1767190051876,4.78727691,126.57,126.54,0.65]
[1767190052071,15.1,126.57,126.53,3.76916795]
[1767190052304,15.1,126.57,126.53,0.65]
[1767190052472,15.1,126.57,126.53,3.76916795]
[1767190053290,15.1,126.57,126.54,3.11916795]
[1767190054515,15.1,126.57,126.54,3.76916795]
[1767190054674,14.44,126.58,126.55,0.65]
[1767190054876,14.44,126.58,126.55,3.76916795]
[1767190055590,15.1,126.58,126.55,3.76916795]
[1767190056495,15.1,126.59,126.56,3.76916795]
[1767190056702,14.44,126.59,126.57,3.11916795]
[1767190057281,14.44,126.59,126.56,0.65]
[1767190057479,14.44,126.59,126.57,3.11916795]
[1767190058406,7.89666762,126.64,126.57,3.11916795]
[1767190058407,0.66,126.63,126.57,3.76916795]
[1767190058602,14.44,126.61,126.58,3.76916795]
[1767190058799,18.21916795,126.62,126.58,3.76916795]
[1767190059298,3.77916795,126.61,126.58,0.65]
[1767190059684,4.12596501,126.66,126.57,7.9005966]
[1767190059890,7.24513296,126.66,126.62,3.76916795]
[1767190060180,3.77916795,126.65,126.62,0.65]
[1767190060679,0.66,126.65,126.62,0.65]
[1767190060882,3.77916795,126.65,126.62,0.65]
[1767190061911,0.66,126.65,126.62,3.76916795]
[1767190062209,0.12,126.69,126.65,0.65]
[1767190062406,0.1,126.72,126.68,0.33]
[1767190062603,9.82088488,126.76,126.7,0.23]
[1767190062604,7.36171693,126.76,126.7,0.23]
[1767190062904,7.36171693,126.76,126.74,3.11916795]
[1767190063200,6.70171693,126.76,126.75,3.11916795]
[1767190063409,0.87,126.78,126.73,14.44]
[1767190063607,0.21,126.78,126.76,3.11916795]
[1767190064305,0.66,126.8,126.77,3.11916795]
[1767190064506,0.66,126.8,126.77,4.86050634]
[1767190066182,5.58050634,126.79,126.75,4.86050634]
[1767190066600,0.72,126.79,126.76,4.86050634]
[1767190067105,0.72,126.79,126.73,14.42]
[1767190067296,0.72,126.79,126.76,4.86050634]
[1767190067493,0.72,126.79,126.77,4.86050634]
[1767190067708,0.72,126.79,126.73,14.42]
[1767190067899,0.72,126.79,126.77,4.86050634]
[1767190068594,326.21346317,126.93,126.78,12.70575996]
[1767190068595,8.23740928,126.87,126.78,12.70575996]
[1767190068793,8.23740928,126.87,126.73,14.56]
[1767190068794,12.03575996,126.85,126.81,12.03575996]
[1767190069210,8.51013837,126.88,126.79,0.67]
[1767190069394,12.03575996,126.86,126.82,12.03575996]
[1767190069909,12.03575996,126.85,126.8,0.67]
[1767190070113,12.03575996,126.85,126.81,12.03575996]
[1767190070491,0.66,126.84,126.81,12.03575996]
[1767190071213,12.69575996,126.84,126.8,12.70575996]
[1767190071515,0.66,126.83,126.79,12.03575996]
[1767190071689,12.69575996,126.83,126.79,12.70575996]
[1767190071890,12.69575996,126.83,126.79,0.67]
[1767190072100,12.03575996,126.82,126.78,12.70575996]
[1767190072506,12.69575996,126.83,126.79,12.03575996]
[1767190072918,0.66,126.83,126.79,12.03575996]
[1767190073403,0.66,126.83,126.78,0.67]
[1767190073708,0.66,126.83,126.79,12.03575996]
[1767190074111,12.69575996,126.83,126.79,12.03575996]
[1767190074706,12.69575996,126.83,126.78,0.67]
[1767190074907,12.69575996,126.83,126.79,12.03575996]
[1767190075307,12.69575996,126.83,126.79,12.70575996]
[1767190075505,12.69575996,126.83,126.79,0.67]
[1767190075818,12.69575996,126.83,126.79,12.70575996]
[1767190076119,12.69575996,126.83,126.79,0.67]
[1767190076516,12.69575996,126.83,126.79,12.70575996]
[1767190078108,12.69575996,126.83,126.79,0.67]
[1767190078321,12.69575996,126.83,126.79,12.70575996]
[1767190078500,0.66,126.83,126.79,12.70575996]
[1767190078700,12.69575996,126.83,126.79,12.70575996]
[1767190080207,0.66,126.81,126.76,0.67]
[1767190080406,7.88398812,126.84,126.76,12.70575996]
[1767190080407,12.69575996,126.8,126.76,12.70575996]
[1767190081221,0.66,126.8,126.77,12.03575996]
[1767190081411,0.66,126.8,126.77,12.70575996]
[1767190081822,0.66,126.8,126.78,12.03575996]
[1767190082830,0.66,126.8,126.77,0.67]
[1767190083034,0.66,126.8,126.78,12.03575996]
[1767190084834,0.66,126.82,126.79,12.70575996]
[1767190085036,0.66,126.82,126.8,12.03575996]
[1767190085222,0.66,126.84,126.81,12.03575996]
[1767190085807,0.66,126.84,126.8,12.03575996]
[1767190086309,12.69575996,126.84,126.8,12.03575996]
[1767190086538,15.08,126.87,126.83,12.03575996]
[1767190086719,0.66,126.86,126.83,12.00490759]
[1767190087033,12.69575996,126.86,126.83,12.00490759]
[1767190087415,12.69575996,126.86,126.82,12.03575996]
[1767190087416,0.66,126.85,126.82,12.03575996]
[1767190087632,0.66,126.85,126.83,12.03575996]
[1767190087826,0.66,126.86,126.83,12.03575996]
[1767190089140,26.45575996,126.87,126.84,12.03575996]
[1767190089141,0.66,126.87,126.84,12.03575996]
[1767190090025,0.66,126.87,126.83,12.70575996]
[1767190090525,18.9018328,126.89,126.86,4.85279775]
[1767190090730,18.9018328,126.89,126.84,4.85279775]
[1767190090731,18.3518328,126.89,126.87,5.40298507]
[1767190090935,24.55061116,126.95,126.89,0.66]
[1767190091145,32.56950094,127.0,126.94,4.85279775]
[1767190091437,32.55950094,127.0,126.97,4.85279775]
[1767190091612,42.57926928,127.06,126.95,4.11331077]
[1767190091613,22.90333501,127.06,126.95,4.11331077]
[1767190091817,22.90333501,127.06,126.96,4.85279775]
[1767190091818,30.63378606,127.06,126.96,4.85279775]
[1767190092008,14.24,127.05,126.95,14.6762005]
[1767190092212,22.11144544,127.05,126.95,18.51331077]
[1767190092431,14.4,127.04,126.95,4.11331077]
[1767190092630,14.4,127.03,126.96,11.99838593]
[1767190092816,14.4,127.03,126.98,11.99838593]
[1767190093018,11.99838593,127.02,126.97,11.99838593]
[1767190093211,0.66,127.02,126.95,4.11331077]
[1767190093411,0.66,127.02,126.97,11.99838593]
[1767190093615,0.66,127.02,126.95,4.11331077]
[1767190093838,11.99838593,127.0,126.96,11.99838593]
[1767190094138,11.99838593,127.0,126.95,4.11331077]
[1767190094139,0.66,126.99,126.95,4.11331077]
[1767190094320,0.66,127.02,126.95,4.11331077]
[1767190094522,0.66,127.01,126.97,11.99838593]
[1767190094721,15.06,127.03,126.95,4.11331077]
[1767190094917,11.99838593,127.0,126.95,4.11331077]
[1767190095133,11.99838593,126.99,126.95,16.1116967]
[1767190095334,11.99838593,126.98,126.95,4.11331077]
[1767190095531,11.99838593,126.97,126.95,4.11331077]
[1767190095725,0.66,126.99,126.95,4.11331077]
[1767190096021,11.99838593,126.97,126.95,4.11331077]
[1767190096219,15.06,126.99,126.95,4.11331077]
[1767190096525,0.66,126.99,126.94,11.99838593]
[1767190096718,12.65838593,126.99,126.94,11.99838593]
[1767190097138,11.99838593,126.98,126.93,11.99838593]
[1767190097346,0.66,126.99,126.93,11.99838593]
[1767190097541,11.99838593,126.98,126.93,11.99838593]
[1767190097738,0.66,126.99,126.94,11.99838593]
[1767190097941,11.99838593,126.98,126.94,11.99838593]
[1767190098122,11.99838593,126.98,126.93,11.99838593]
[1767190098322,11.99838593,126.97,126.92,11.99838593]
[1767190098657,11.99838593,126.97,126.93,11.99838593]
[1767190098947,14.4,127.0,126.91,14.4]
[1767190098948,12.66838593,127.0,126.95,11.99838593]
[1767190099142,0.67,127.0,126.96,11.99838593]
[1767190099525,12.66838593,127.0,126.96,11.99838593]
[1767190100149,0.67,127.0,126.96,11.99838593]
[1767190100326,12.66838593,127.0,126.96,11.99838593]
[1767190100523,0.7,127.03,126.98,11.99838593]
[1767190100958,12.69838593,127.03,126.98,11.99838593]
[1767190101529,11.99838593,127.02,126.97,11.99838593]
[1767190101842,0.7,127.03,126.96,7.87644889]
[1767190101843,11.99838593,127.01,126.96,7.87644889]
[1767190102044,11.99838593,127.01,126.96,19.87483482]
[1767190102354,0.7,127.02,126.97,11.99838593]
[1767190102555,0.7,127.03,126.97,19.87416064]
[1767190102762,30.63370878,127.06,126.97,19.87416064]
[1767190102763,0.7,127.05,126.99,11.99838593]
[1767190102984,11.99838593,127.04,126.97,7.87577471]
[1767190103142,0.7,127.05,126.97,7.87577471]
[1767190103343,15.1,127.05,126.99,11.99838593]
[1767190103738,0.7,127.05,127.0,11.99838593]
[1767190103934,27.09838593,127.05,127.0,11.99838593]
[1767190104155,11.99838593,127.03,126.97,7.87577471]
[1767190104348,11.99838593,127.02,126.97,19.87416064]
[1767190104551,11.99838593,127.02,126.98,11.99838593]
[1767190104751,0.7,127.04,126.99,11.99838593]
[1767190104963,11.99838593,127.03,126.97,27.56546518]
[1767190105280,0.7,127.04,126.98,11.99838593]
[1767190105780,0.7,127.04,126.97,27.56546518]
[1767190106071,23.46333501,127.06,127.0,11.99838593]
[1767190106364,22.76333501,127.06,127.0,21.73944411]
[1767190106659,25.57100315,127.18,127.0,21.73944411]
[1767190106660,25.57100315,127.18,127.09,8.35013837]
[1767190106661,0.7,127.17,127.09,8.35013837]
[1767190106845,0.5,127.17,127.14,11.99838593]
[1767190107036,14.38,127.2,127.14,11.99838593]
[1767190107235,11.99838593,127.18,127.13,4.81021392]
[1767190107463,11.99838593,127.19,127.14,12.69838593]
[1767190108046,11.99838593,127.15,127.13,4.11021392]
[1767190108253,14.38,127.16,127.1,0.7]
[1767190108453,22.24439287,127.16,127.1,0.7]
[1767190108760,11.99838593,127.14,127.1,0.7]
[1767190108960,7.86439287,127.16,127.07,12.69838593]
[1767190108961,11.99838593,127.12,127.07,12.69838593]
[1767190109147,12.69838593,127.13,127.08,11.99838593]
[1767190109352,27.07838593,127.13,127.08,12.69838593]
[1767190109540,11.99838593,127.12,127.08,0.7]
[1767190109739,0.7,127.12,127.06,12.69838593]
[1767190109942,11.99838593,127.1,127.06,0.7]
[1767190110163,11.99838593,127.1,127.06,12.69838593]
[1767190110372,11.99838593,127.11,127.06,12.69838593]
[1767190110752,8.35013837,127.16,127.09,11.99838593]
[1767190110944,15.08,127.15,127.1,11.99838593]
[1767190111147,11.99838593,127.17,127.12,11.99838593]
[1767190111359,12.69838593,127.17,127.12,11.99838593]
[1767190111560,11.99838593,127.16,127.12,11.99838593]
[1767190111755,15.08,127.17,127.12,11.99838593]
[1767190111956,11.99838593,127.16,127.12,11.99838593]
[1767190112170,0.7,127.17,127.12,11.99838593]
[1767190112474,11.99838593,127.16,127.12,11.99838593]
[1767190112678,12.69838593,127.16,127.11,0.67]
[1767190112857,0.7,127.14,127.08,0.67]
[1767190113052,11.99838593,127.13,127.08,12.66838593]
[1767190113247,11.99838593,127.13,127.05,22.25078289]
[1767190113248,11.99838593,127.11,127.07,11.99838593]
[1767190113479,11.99838593,127.11,127.06,12.66838593]
[1767190113680,11.99838593,127.11,127.07,11.99838593]
[1767190113980,14.38,127.12,127.05,26.37838593]
[1767190114178,11.99838593,127.1,127.05,27.04838593]
[1767190114355,0.7,127.11,127.05,27.04838593]
[1767190114550,11.99838593,127.1,127.05,27.04838593]
[1767190114864,11.99838593,127.1,127.05,0.67]
[1767190115052,11.99838593,127.1,127.06,11.99838593]
[1767190115252,11.99838593,127.1,127.05,0.67]
[1767190115549,11.99838593,127.1,127.06,11.99838593]
[1767190115750,0.7,127.11,127.06,12.66838593]
[1767190115952,11.99838593,127.1,127.06,12.66838593]
[1767190116152,0.7,127.11,127.06,12.66838593]
[1767190116346,60.05771431,127.23,127.08,11.99838593]
[1767190116347,19.65916682,127.17,127.08,11.99838593]
[1767190116647,19.65916682,127.17,127.05,7.87071589]
[1767190116648,0.7,127.17,127.13,11.99838593]
[1767190116876,12.69838593,127.17,127.12,0.67]
[1767190117152,0.7,127.17,127.13,11.99838593]
[1767190117365,0.7,127.2,127.14,0.67]
[1767190117570,5.27705315,127.23,127.14,0.67]
[1767190117770,5.27705315,127.23,127.2,11.99838593]
[1767190117771,4.60705315,127.23,127.2,11.99838593]
[1767190117960,28.93867128,127.29,127.18,14.38]
[1767190117961,28.23867128,127.29,127.18,14.38]
[1767190118166,28.23867128,127.29,127.2,11.99838593]
[1767190118365,28.23867128,127.29,127.19,10.36684275]
[1767190118548,28.23867128,127.29,127.2,5.51529]
[1767190118755,28.93867128,127.29,127.21,7.86101721]
[1767190118949,28.93867128,127.29,127.2,5.51529]
[1767190119151,0.7,127.28,127.2,11.99838593]
[1767190119485,28.23867128,127.29,127.18,22.73013837]
[1767190119780,8.55299198,127.34,127.23,8.35013837]
[1767190119956,43.95250535,127.35,127.23,22.73013837]
[1767190120154,43.95250535,127.35,127.24,5.51529]
[1767190120155,44.65250535,127.35,127.24,5.51529]
[1767190120575,29.57250535,127.35,127.24,5.51529]
[1767190120775,29.57250535,127.35,127.24,25.16168502]
[1767190120981,29.57250535,127.35,127.33,11.99838593]
[1767190121172,29.57250535,127.35,127.28,26.37838593]
[1767190121359,29.57250535,127.35,127.28,14.38]
[1767190121561,29.57250535,127.35,127.28,26.37838593]
[1767190121865,0.7,127.34,127.25,10.36250942]
[1767190122054,29.57250535,127.35,127.25,10.36250942]
[1767190122055,29.57250535,127.35,127.25,14.38]
[1767190122251,0.7,127.34,127.25,14.38]
[1767190122968,0.7,127.34,127.25,14.36]
[1767190123162,29.57250535,127.35,127.25,14.36]
[1767190123163,0.7,127.33,127.25,14.36]
[1767190123480,0.7,127.32,127.26,11.99838593]
[1767190123880,0.7,127.32,127.25,14.36]
[1767190123881,11.99838593,127.3,127.25,14.36]
[1767190124101,11.99838593,127.31,127.25,14.36]
[1767190124375,0.7,127.34,127.25,14.36]
[1767190124579,0.7,127.33,127.26,11.99838593]
[1767190124777,0.7,127.33,127.25,14.36]
[1767190124778,11.99838593,127.33,127.28,11.99838593]
[1767190124981,0.7,127.34,127.26,7.8574267]
[1767190125167,0.7,127.34,127.27,7.85693034]
[1767190125478,0.7,127.34,127.25,14.36]
[1767190125678,0.7,127.33,127.27,11.99838593]
[1767190125912,43.93250535,127.35,127.25,14.36]
[1767190125913,11.99838593,127.3,127.25,14.36]
[1767190126059,11.99838593,127.29,127.25,14.36]
[1767190126388,0.7,127.3,127.24,11.99838593]
[1767190126686,0.7,127.3,127.23,7.85959381]
[1767190126987,7.85484251,127.31,127.21,14.36]
[1767190127285,0.7,127.26,127.21,14.36]
[1767190127602,0.7,127.26,127.19,7.86224274]
[1767190127804,8.04931994,127.29,127.24,7.34931994]
[1767190127986,15.06,127.31,127.22,34.00951925]
[1767190128159,15.06,127.31,127.22,14.36]
[1767190128481,7.34931994,127.29,127.23,7.34931994]
[1767190128685,0.7,127.28,127.23,7.34931994]
[1767190128875,0.7,127.28,127.21,7.86101721]
[1767190129275,7.34931994,127.27,127.2,14.36]
[1767190129591,0.7,127.26,127.2,14.36]
[1767190129883,7.34931994,127.25,127.2,21.70931994]
[1767190130486,0.7,127.26,127.2,21.70931994]
[1767190130665,8.05931994,127.28,127.22,7.34931994]
[1767190130866,0.71,127.28,127.23,7.34931994]
[1767190131063,0.71,127.28,127.22,7.86020783]
[1767190131370,7.85299198,127.34,127.23,7.8597806]
[1767190131689,7.34931994,127.29,127.23,7.8597806]
[1767190132074,7.34931994,127.27,127.21,7.86093407]
[1767190132389,8.05931994,127.28,127.2,14.36]
[1767190132689,7.34931994,127.26,127.21,7.34931994]
[1767190132991,7.34931994,127.25,127.2,14.36]
[1767190133282,7.34931994,127.25,127.19,7.34931994]
[1767190133283,0.71,127.25,127.19,7.34931994]
[1767190133458,7.34931994,127.24,127.19,7.34931994]
[1767190133658,7.34931994,127.24,127.19,15.21154711]
[1767190133857,7.34931994,127.24,127.18,7.86270025]
[1767190134057,7.34931994,127.22,127.17,14.36]
[1767190134262,8.05931994,127.23,127.17,14.36]
[1767190134683,8.05931994,127.23,127.17,22.2230812]
[1767190135165,0.71,127.23,127.17,22.2230812]
[1767190135365,8.05931994,127.23,127.18,7.34931994]
[1767190135571,0.71,127.23,127.17,14.36]
[1767190135771,0.71,127.23,127.18,7.34931994]
[1767190136090,0.71,127.23,127.18,7.86275595]
[1767190136330,0.71,127.26,127.18,7.86275595]
[1767190136465,0.71,127.26,127.2,7.34931994]
[1767190136866,0.71,127.26,127.22,7.34931994]
[1767190137172,0.71,127.26,127.21,7.86086191]
[1767190137173,7.34931994,127.26,127.21,7.86086191]
[1767190137377,7.34931994,127.23,127.18,7.86270223]
[1767190137593,7.34931994,127.23,127.18,15.21202217]
[1767190137771,8.05931994,127.23,127.18,15.21202217]
[1767190137972,7.34931994,127.22,127.17,29.57276212]
[1767190138185,8.05931994,127.23,127.18,7.34931994]
[1767190138585,0.71,127.23,127.18,7.34931994]
[1767190138889,7.34931994,127.22,127.17,21.70931994]
[1767190139064,0.71,127.22,127.18,7.34931994]
[1767190139260,69.12329802,127.36,127.2,7.34931994]
[1767190139261,0.71,127.25,127.2,7.34931994]
[1767190139466,0.71,127.26,127.18,27.51989493]
[1767190139775,27.48547195,127.34,127.23,7.34931994]
[1767190139974,8.05931994,127.28,127.23,7.34931994]
[1767190140183,8.05931994,127.25,127.2,7.34931994]
[1767190140371,0.71,127.24,127.18,7.86271613]
[1767190140573,14.36,127.29,127.18,27.51989493]
[1767190140896,27.48547195,127.34,127.25,7.34931994]
[1767190140897,0.71,127.28,127.25,7.34931994]
[1767190141092,7.34931994,127.3,127.26,7.34931994]
[1767190141299,14.36,127.33,127.25,7.85852237]
[1767190141477,29.57250535,127.35,127.28,7.34931994]
[1767190141681,29.57250535,127.35,127.29,7.34931994]
[1767190141988,7.34931994,127.34,127.29,7.34931994]
[1767190142194,29.57250535,127.35,127.3,7.34931994]
[1767190142568,29.57250535,127.35,127.3,0.23]
[1767190142772,36.92182529,127.35,127.3,0.23]
[1767190142973,8.05931994,127.33,127.27,0.23]
[1767190143186,0.71,127.32,127.25,14.59]
[1767190143396,0.71,127.32,127.27,7.85678063]
[1767190143575,0.71,127.32,127.28,7.34931994]
[1767190143771,7.34931994,127.31,127.25,22.1783545]
[1767190143975,0.71,127.3,127.25,21.66957994]
[1767190144498,0.71,127.33,127.28,7.34931994]
[1767190144701,0.71,127.33,127.29,7.34931994]
[1767190144872,0.71,127.34,127.27,0.23]
[1767190145077,7.34931994,127.31,127.25,22.17877609]
[1767190145300,0.71,127.31,127.25,22.40877609]
[1767190145500,0.71,127.33,127.29,7.34931994]